[Event "44th Chess Olympiad Women 2022"]
[Site "Chennai"]
[Date "2022.07.29"]
[Round "1.7"]
[White "Krush, Irina"]
[Black "Vega Jimenez, Keyshla M."]
[Result "1-0"]
[WhiteElo "2430"]
[BlackElo "1653"]
[Annotator "TA"]
[PlyCount "53"]
[EventDate "2022.??.??"]
[TimeControl "60"]

{[%evp 23,53,108,140,78,89,85,71,90,148,58,55,55,75,70,70,80,127,123,110,86,
103,106,149,111,337,314,302,280,264,248,279,285]} 1. e4 {[%emt 0:00:04]} e5 {
[%emt 0:00:10]} 2. Nf3 {[%emt 0:00:06]} Nc6 {[%emt 0:00:06]} 3. Bb5 {[%emt 0:
00:00]} a6 {[%emt 0:00:10]} 4. Ba4 {[%emt 0:00:06]} Nf6 {[%emt 0:00:29]} 5. O-O
{[%emt 0:00:11]} d6 {[%emt 0:00:53]} 6. c3 {[%emt 0:05:22]} b5 {[%emt 0:03:36]}
7. Bc2 {[%emt 0:04:02]} Be7 {[%emt 0:01:41]} 8. Re1 {[%emt 0:03:18]} O-O {
[%emt 0:01:03]} 9. h3 {[%emt 0:00:06]} Re8 {[%emt 0:02:09]} 10. d4 {[%emt 0:00:
00]} exd4 {[%emt 0:04:33]} 11. cxd4 {[%emt 0:02:11]} Bd7 {[%emt 0:10:13]} 12.
Nc3 {[%emt 0:01:49]} h6 {[%emt 0:08:06]} 13. Bf4 {[%emt 0:02:22] [#] C87:
Closed Ruy Lopez: Steinitz-type lines after 6 Re1 d6.} (13. e5 $142 Nh7 14. Be3
(14. Qd3 Nf8 $16)) 13... Nb4 $146 {[%emt 0:19:39]} ({Predecessor:} 13... Bf8
14. Qd2 Ne7 15. Rad1 Bc6 16. b4 Bb7 17. Rc1 Ng6 18. Bg3 Qd7 19. Nh4 Ne7 {
1-0 (96) Santos Burkholz,M (1471)-Franco Rincon,D (1728) Madrid 2016}) 14. Bb3
{[%emt 0:01:52]} c5 {[%emt 0:06:17]} 15. a3 {[%emt 0:01:02] White is better.}
Nc6 {[%emt 0:01:30]} (15... cxd4 $142 16. Nxd4 (16. axb4 dxc3 17. bxc3 Be6 $16)
16... Nc6) 16. d5 {[%emt 0:04:41]} (16. dxc5 $16 dxc5 17. e5) 16... Na5 $14 {
[%emt 0:06:13]} 17. Bc2 {[%emt 0:00:08]} Bf8 {[%emt 0:09:18]} 18. e5 {[%emt 0:
00:00]} dxe5 {[%emt 0:03:35]} 19. Nxe5 {[%emt 0:00:03]} ({Of course not} 19.
Bxe5 Nc4 $15) 19... Rc8 {[%emt 0:03:49]} ({Better is} 19... Nb7) 20. Qd3 $16 {
[%emt 0:04:21]} c4 {[%emt 0:03:39]} 21. Qg3 {[%emt 0:02:24] And now Bxh6 would
win.} Nh5 {[%emt 0:05:31] [#]} 22. Qf3 {[%emt 0:00:12] White is much more
active.} Nf6 {[%emt 0:02:12]} 23. Rad1 $40 {[%emt 0:06:28] Hoping for Bg3.
White has strong attack.} Qb6 $2 {[%emt 0:05:01] This costs Black the game.} (
23... Nb7 $16 24. Re2 Nc5) 24. Nxd7 $18 {[%emt 0:09:54]} Nxd7 {[%emt 0:00:00]}
25. Bf5 {[%emt 0:00:10] This bishop pair is nice.} Rxe1+ {[%emt 0:00:00]} 26.
Rxe1 {[%emt 0:02:01]} Rd8 {[%emt 0:00:09]} 27. Qg3 {[%emt 0:04:41] Weighted
Error Value: White=0.20 (precise) /Black=0.27 (precise)} 1-0

[Event "44th Chess Olympiad Women 2022"]
[Site "Chennai"]
[Date "2022.07.29"]
[Round "1.7"]
[White "Morales Santos, Natasha"]
[Black "Tokhirjonova, Gulrukhbegim"]
[Result "0-1"]
[WhiteElo "1924"]
[BlackElo "2329"]
[Annotator "TA"]
[PlyCount "68"]
[EventDate "2022.??.??"]
[TimeControl "60"]

{[%evp 9,68,2,17,18,53,52,64,55,51,52,61,56,60,54,71,-35,32,-21,-22,-101,-104,
-118,-118,-138,-131,-148,-131,-198,-186,-195,-185,-195,-192,-216,-216,-227,
-227,-256,-230,-308,-300,-359,-354,-416,-336,-414,-396,-598,-598,-598,-559,
-549,-543,-584,-476,-452,-460,-499,-488,-6191,-5477]} 1. d4 {[%emt 0:00:20]} e6
{[%emt 0:01:25]} 2. c4 {[%emt 0:00:14]} b6 {[%emt 0:00:48]} 3. Nc3 {[%emt 0:00:
00]} Bb7 {[%emt 0:01:42]} 4. e4 {[%emt 0:02:03]} Bb4 {[%emt 0:01:10]} 5. Qc2 {
[%emt 0:01:59]} Bxc3+ {[%emt 0:08:43]} 6. bxc3 {[%emt 0:00:50] A40: Unusual
replies to 1 d4.} d6 {[%emt 0:00:08]} 7. Bd3 {[%emt 0:04:25]} Ne7 {[%emt 0:00:
00]} 8. Ne2 {[%emt 0:04:52] White is slightly better.} Nd7 {[%emt 0:06:31]} 9.
O-O {[%emt 0:03:08]} O-O {[%emt 0:03:15]} 10. f4 {[%emt 0:03:23]} f5 {[%emt 0:
00:00] [#]} 11. Ng3 $146 {[%emt 0:15:51][%cal Re4f5]} ({Predecessor:} 11. e5 d5
12. cxd5 Nxd5 13. Qd2 c5 14. Ba3 a5 15. Rfd1 Qc7 16. Bb5 c4 17. Bd6 {0-1 (63)
Kowalski,I (2082)-Rajlich,I (2407) Chylice 2014}) 11... g6 {[%emt 0:03:56]} 12.
d5 {[%emt 0:17:44]} (12. Bb2 $16) 12... fxe4 {[%emt 0:11:01]} ({Don't play} 
12... exd5 13. exf5 dxc4 14. Bxc4+ d5 15. Bd3 $14) (12... Nc5 $1 $15) 13. Bxe4
{[%emt 0:01:04]} ({White should play} 13. Nxe4 $14 exd5 14. Ng5) 13... Nc5 $1
$11 {[%emt 0:00:29]} ({Don't do} 13... exd5 14. cxd5 Bxd5 15. c4 Bxe4 16. Nxe4
$11) 14. Be3 {[%emt 0:06:13]} (14. Re1 $11) 14... Nxe4 $17 {[%emt 0:09:41]
White is on the road to losing.} 15. Qxe4 {[%emt 0:00:40]} exd5 {[%emt 0:00:42]
} 16. Qe6+ {[%emt 0:06:15]} Rf7 {[%emt 0:01:11] [#] And now ...Bc8 would win.}
17. Qg4 {[%emt 0:05:02]} Qc8 {[%emt 0:04:37]} 18. Qg5 {[%emt 0:02:51]} (18. f5
$17 {was called for.}) 18... dxc4 $19 {[%emt 0:05:59]} 19. Rae1 {[%emt 0:05:06]
} Nf5 {[%emt 0:02:14]} 20. Nxf5 {[%emt 0:12:47]} Qxf5 {[%emt 0:00:17]} 21. Qxf5
{[%emt 0:00:13]} gxf5 {[%emt 0:00:25]} 22. Bf2 {[%emt 0:01:28]} Be4 {[%emt 0:
00:00]} 23. Re3 {[%emt 0:00:54]} Rg7 {[%emt 0:00:08]} 24. Bg3 {[%emt 0:00:38]}
d5 {[%emt 0:00:20][%cal Yd6d5,Yd5d4]} 25. Rf2 {[%emt 0:00:57]} c5 {[%emt 0:01:
04] Hoping for ...d4.} 26. Rd2 {[%emt 0:00:28]} Rd8 {[%emt 0:00:27]} 27. Bh4 {
[%emt 0:00:33]} Rd6 {[%emt 0:00:06]} 28. h3 {[%emt 0:01:57]} (28. Rg3 {was
necessary.}) 28... d4 {[%emt 0:01:20] Black is clearly winning.} 29. g4 {
[%emt 0:00:56]} Rgd7 {[%emt 0:00:07]} (29... dxe3 $2 {too greedy.} 30. Rxd6
fxg4 31. Rd8+ Kf7 32. Rd7+ Kg6 33. Rxg7+ Kxg7 34. hxg4 $19) 30. Rg3 {[%emt 0:
00:00]} Kf7 {[%emt 0:01:23] Threatens to win with ...b5.} 31. gxf5 {[%emt 0:00:
00]} Bxf5 {[%emt 0:00:46] [#] Strongly threatening ...Rh6.} 32. Rg5 {[%emt 0:
00:00]} Rg6 {[%emt 0:01:17]} 33. Kh2 {[%emt 0:01:03]} Rxg5 {[%emt 0:00:13]} 34.
Bxg5 {[%emt 0:00:13]} (34. fxg5 $142 Kg6 35. Bg3) 34... dxc3 {[%emt 0:00:26]
Weighted Error Value: White=0.65/Black=0.14 (very precise)} 0-1

[Event "44th Chess Olympiad Women 2022"]
[Site "Chennai"]
[Date "2022.07.29"]
[Round "1.8"]
[White "Paehtz, Elisabeth"]
[Black "Mwango, Lorita"]
[Result "0-1"]
[WhiteElo "2484"]
[BlackElo "1920"]
[Annotator "TA"]
[PlyCount "115"]
[EventDate "2022.??.??"]
[TimeControl "60"]

{[%evp 14,115,31,37,33,31,35,25,29,29,36,22,45,38,41,36,47,44,43,43,49,47,53,
50,85,58,55,50,59,47,73,65,74,60,73,30,56,42,46,38,57,56,54,32,36,32,27,27,43,
17,58,17,23,19,24,7,20,7,15,0,45,14,26,26,26,28,102,107,107,108,101,106,99,-50,
-45,-59,0,0,0,0,375,358,439,432,886,883,829,837,1050,953,1441,1289,2280,1992,
29975,29976,29975,29976,29983,29977,29977,29977,5402,4885]} 1. Nf3 {[%emt 0:00:
00]} c6 {[%emt 0:00:27]} 2. c4 {[%emt 0:00:36]} d5 {[%emt 0:00:21]} 3. e3 {
[%emt 0:00:04]} Nf6 {[%emt 0:00:15]} 4. b3 {[%emt 0:01:20]} g6 {[%emt 0:00:29]}
5. Bb2 {[%emt 0:01:14]} Bg7 {[%emt 0:00:06]} 6. Be2 {[%emt 0:01:40]} Bg4 {
[%emt 0:03:37]} 7. O-O {[%emt 0:02:14]} O-O {[%emt 0:00:06]} 8. h3 {[%emt 0:00:
00]} Bxf3 {[%emt 0:00:35] A12: English Opening: 1...c6 with b3 by White.} 9.
Bxf3 {[%emt 0:00:05]} e6 {[%emt 0:00:10]} 10. Qc2 {[%emt 0:01:00]} Nbd7 {
[%emt 0:01:16] White has an edge.} 11. Nc3 {[%emt 0:01:24]} Rc8 {[%emt 0:00:24]
[#]} 12. d4 $146 {[%emt 0:08:25]} ({Predecessor:} 12. Rad1 b5 13. cxb5 cxb5 14.
Qb1 Qb6 15. g4 Rfd8 16. Bg2 h5 17. g5 Ne8 18. Ne2 Bxb2 19. Qxb2 {½-½ (45)
Selbes,T (2314)-Petr,M (2523) Legnica 2013}) 12... Nb6 {[%emt 0:03:10]} 13. Qe2
{[%emt 0:03:00]} Re8 {[%emt 0:01:09]} 14. Rfd1 {[%emt 0:00:39]} Qe7 {[%emt 0:
00:00]} 15. a4 {[%emt 0:10:20][%cal Ya2a4,Ya4a5]} Nbd7 {[%emt 0:12:32]} 16. a5
{[%emt 0:13:56]} Qd6 {[%emt 0:03:11]} 17. g3 {[%emt 0:08:08]} h6 {[%emt 0:04:
36]} 18. Bg2 {[%emt 0:00:14]} Qc7 {[%emt 0:01:52]} 19. Rdc1 {[%emt 0:04:36]}
Qb8 {[%emt 0:01:52]} 20. Qf3 {[%emt 0:07:20]} Nh7 {[%emt 0:00:00]} 21. Rd1 {
[%emt 0:01:45]} Ng5 {[%emt 0:00:30]} 22. Qe2 {[%emt 0:00:38]} Nf6 {[%emt 0:00:
56]} 23. h4 {[%emt 0:04:40]} Ngh7 {[%emt 0:00:51]} 24. Rd2 {[%emt 0:04:56]} h5
{[%emt 0:00:44]} 25. Bf3 {[%emt 0:00:36]} (25. Rad1 {seems wilder.} Ng4 26. e4
e5 27. dxe5 dxc4 28. f3) 25... Bf8 {[%emt 0:02:38]} 26. Rdd1 {[%emt 0:00:14]}
Qc7 {[%emt 0:01:09]} 27. Rdc1 {[%emt 0:02:16]} Qd8 {[%emt 0:01:37]} 28. Kg2 {
[%emt 0:04:17]} a6 {[%emt 0:01:21]} 29. Ra4 {[%emt 0:00:00]} Bd6 {[%emt 0:03:
58]} 30. Rd1 {[%emt 0:00:34]} Bc7 {[%emt 0:00:55]} 31. Rda1 {[%emt 0:00:19]}
Nf8 {[%emt 0:02:13]} 32. Qd2 {[%emt 0:06:31]} (32. e4 $5 {[%cal Re4e5]}) 32...
N8d7 {[%emt 0:02:41]} 33. R4a2 {[%emt 0:00:40]} Bd6 {[%emt 0:00:51]} 34. Na4 {
[%emt 0:03:42]} Ne4 {[%emt 0:02:34]} 35. Bxe4 {[%emt 0:01:03]} dxe4 {[%emt 0:
00:14]} 36. Rd1 {[%emt 0:00:57][%cal Ya4c5]} Bc7 {[%emt 0:00:39]} 37. b4 {
[%emt 0:02:12]} Qf6 {[%emt 0:00:40] ...Qf3+ is the strong threat.} 38. Qe2 {
[%emt 0:00:20] Against Qf3+} Qf5 {[%emt 0:00:59] Prevents d5.} 39. Bc3 {
[%emt 0:00:49]} Nf6 {[%emt 0:00:36]} (39... Rcd8 $11 {keeps the balance.}) 40.
Nc5 $16 {[%emt 0:00:34]} Rb8 {[%emt 0:00:30]} 41. d5 $1 {[%emt 0:32:08]} Bd6 {
[%emt 0:34:54]} 42. Bxf6 {[%emt 0:00:00]} Bxc5 {[%emt 0:00:00]} 43. Ba1 {
[%emt 0:00:00]} ({But not} 43. bxc5 Qxf6 44. d6 Qf5 $14) ({White should play} 
43. Bc3 $16 Bf8 44. d6) 43... Bxb4 $15 {[%emt 0:00:00]} 44. Rb1 {[%emt 0:00:00]
[#] Black must now prevent Qb2.} Be7 {[%emt 0:00:00]} (44... c5 $1 $15) 45. Qb2
$36 {[%emt 0:00:00][%csl Ga1][%cal Rb2g7] White has good play.} f6 {[%emt 0:00:
00]} 46. dxc6 {[%emt 0:00:00]} Qc5 $2 {[%emt 0:00:00]} (46... bxc6 $11 {
and Black stays safe.} 47. Qxb8 Rxb8 48. Rxb8+ Kf7) 47. cxb7 $18 {[%emt 0:00:
00]} Qxc4 {[%emt 0:00:00]} 48. Qb3 {[%emt 0:00:00]} Qc6 {[%emt 0:00:00]} (48...
Qxb3 $142 49. Rxb3 e5) 49. Rc2 {[%emt 0:00:00]} Qd7 {[%emt 0:00:00]} 50. Bd4 {
[%emt 0:00:00]} Kf7 {[%emt 0:00:00]} 51. Ba7 {[%emt 0:00:00]} Bd6 {[%emt 0:01:
06]} 52. Bxb8 {[%emt 0:00:00]} Bxb8 {[%emt 0:00:07]} 53. Rc8 {[%emt 0:00:00] 
[#] aiming for Rd1.} Qd5 {[%emt 0:00:43]} 54. Qxd5 {[%emt 0:00:00]} exd5 {
[%emt 0:00:02]} 55. Rbc1 {[%emt 0:00:00]} Bd6 {[%emt 0:00:52]} 56. Rxe8 {
[%emt 0:00:00]} Kxe8 {[%emt 0:00:00]} 57. b8=Q+ {[%emt 0:00:00]} Bxb8 {[%emt 0:
02:07]} 58. Rc8+ {[%emt 0:00:00] Weighted Error Value: White=0.13 (very
precise) /Black=0.44. Loss on time!?} 0-1

[Event "44th Chess Olympiad Women 2022"]
[Site "Chennai"]
[Date "2022.07.29"]
[Round "1.8"]
[White "Phiri Bertha"]
[Black "Schneider, Jana"]
[Result "0-1"]
[WhiteElo "1606"]
[BlackElo "2342"]
[Annotator "ChessBase"]
[PlyCount "108"]
[EventDate "2022.??.??"]
[TimeControl "60"]

1. e4 {[%emt 0:00:08]} e5 {[%emt 0:00:16]} 2. d3 {[%emt 0:00:37]} Nf6 {[%emt 0:
00:00]} 3. Nf3 {[%emt 0:00:09]} Nc6 {[%emt 0:00:18]} 4. g3 {[%emt 0:01:06]} Bc5
{[%emt 0:01:42]} 5. Bg2 {[%emt 0:00:21]} d5 {[%emt 0:05:47]} 6. exd5 {[%emt 0:
00:00]} Nxd5 {[%emt 0:00:11]} 7. O-O {[%emt 0:01:44]} O-O {[%emt 0:01:05]} 8.
h3 {[%emt 0:04:05]} f6 {[%emt 0:02:59]} 9. Bd2 {[%emt 0:04:23]} Be6 {[%emt 0:
00:00]} 10. Nc3 {[%emt 0:00:46]} Qd7 {[%emt 0:05:00]} 11. Kh2 {[%emt 0:00:06]}
Rad8 {[%emt 0:01:38]} 12. Qe2 {[%emt 0:02:09]} Rfe8 {[%emt 0:02:30]} 13. Rad1 {
[%emt 0:07:36]} Nb6 {[%emt 0:06:21]} 14. a3 {[%emt 0:07:56]} Bf7 {[%emt 0:00:
00]} 15. Be3 {[%emt 0:03:36]} Nd4 {[%emt 0:02:21]} 16. Qd2 {[%emt 0:00:40]} Bf8
{[%emt 0:03:57]} 17. Rde1 {[%emt 0:02:41]} c5 {[%emt 0:05:21]} 18. b3 {[%emt 0:
00:00]} c4 {[%emt 0:03:38]} 19. Bxd4 {[%emt 0:00:47]} exd4 {[%emt 0:00:16]} 20.
Ne2 {[%emt 0:03:07]} cxb3 {[%emt 0:01:02]} 21. cxb3 {[%emt 0:04:13]} Bxa3 {
[%emt 0:05:41]} 22. Nexd4 {[%emt 0:10:33]} Bc5 {[%emt 0:02:52]} 23. Rxe8+ {
[%emt 0:07:45]} Bxe8 {[%emt 0:00:29]} 24. Ne2 {[%emt 0:06:24]} Qxd3 {[%emt 0:
00:00]} 25. Qa2 {[%emt 0:00:33]} Nd5 {[%emt 0:06:17]} 26. b4 {[%emt 0:06:42]}
Bb6 {[%emt 0:02:12]} 27. Nf4 {[%emt 0:00:36]} Qa6 {[%emt 0:03:32]} 28. Qxa6 {
[%emt 0:05:40]} bxa6 {[%emt 0:00:06]} 29. Nxd5 {[%emt 0:02:34]} Rxd5 {[%emt 0:
00:00]} 30. Kg1 {[%emt 0:00:42]} Rb5 {[%emt 0:05:06]} 31. Re1 {[%emt 0:04:50]}
Bf7 {[%emt 0:00:52]} 32. Bf1 {[%emt 0:00:15]} Rxb4 {[%emt 0:01:23]} 33. Bxa6 {
[%emt 0:00:12]} Bd5 {[%emt 0:01:30]} 34. Nh4 {[%emt 0:02:12]} Rb2 {[%emt 0:00:
00]} 35. Rf1 {[%emt 0:00:24]} Ra2 {[%emt 0:02:40]} 36. Bd3 {[%emt 0:00:48]} a5
{[%emt 0:01:38]} 37. Nf5 {[%emt 0:00:23]} Kf8 {[%emt 0:00:34]} 38. Bb5 {
[%emt 0:01:00]} Rb2 {[%emt 0:00:58]} 39. Bd3 {[%emt 0:00:19]} a4 {[%emt 0:00:
00]} 40. Ne3 {[%emt 0:00:06]} Bxe3 {[%emt 0:00:34]} 41. fxe3 {[%emt 0:30:52]}
Rg2+ {[%emt 0:30:08]} 42. Kh1 {[%emt 0:00:01]} Rxg3+ {[%emt 0:00:47]} 43. Kh2 {
[%emt 0:00:02]} Rg2+ {[%emt 0:00:09]} 44. Kh1 {[%emt 0:00:02]} Rf2+ {[%emt 0:
00:00]} 45. Kg1 {[%emt 0:00:10]} Rxf1+ {[%emt 0:00:29]} 46. Kxf1 {[%emt 0:00:
00]} a3 {[%emt 0:00:09]} 47. Bxh7 {[%emt 0:01:07]} a2 {[%emt 0:00:07]} 48. e4 {
[%emt 0:00:03]} a1=Q+ {[%emt 0:00:14]} 49. Kf2 {[%emt 0:00:29]} Qd4+ {[%emt 0:
00:00]} 50. Kf3 {[%emt 0:00:12]} Qd3+ {[%emt 0:00:29]} 51. Kf4 {[%emt 0:00:06]}
g5+ {[%emt 0:00:10]} 52. Kg4 {[%emt 0:00:44]} Be6+ {[%emt 0:00:13]} 53. Kh5 {
[%emt 0:00:07]} Kg7 {[%emt 0:00:22]} 54. Bf5 {[%emt 0:00:18]} Bxf5 {[%emt 0:00:
00]} 0-1

[Event "44th Chess Olympiad Women 2022"]
[Site "Chennai"]
[Date "2022.07.29"]
[Round "1.8"]
[White "Wagner, Dinara"]
[Black "Mbatha, Constance"]
[Result "1-0"]
[WhiteElo "2341"]
[BlackElo "1614"]
[Annotator "ChessBase"]
[PlyCount "83"]
[EventDate "2022.??.??"]
[TimeControl "60"]

1. e4 {[%emt 0:00:09]} e5 {[%emt 0:00:14]} 2. Nf3 {[%emt 0:00:04]} d6 {[%emt 0:
00:00]} 3. d4 {[%emt 0:00:04]} exd4 {[%emt 0:00:13]} 4. Nxd4 {[%emt 0:00:14]}
Nf6 {[%emt 0:00:13]} 5. Nc3 {[%emt 0:00:05]} Be7 {[%emt 0:00:12]} 6. g3 {
[%emt 0:00:04]} Bd7 {[%emt 0:00:27]} 7. Bg2 {[%emt 0:00:26]} Nc6 {[%emt 0:00:
00]} 8. O-O {[%emt 0:01:24]} O-O {[%emt 0:01:34]} 9. h3 {[%emt 0:01:03]} Re8 {
[%emt 0:04:28]} 10. a4 {[%emt 0:03:03]} h6 {[%emt 0:02:13]} 11. Re1 {[%emt 0:
00:00]} Bf8 {[%emt 0:00:56]} 12. Bf4 {[%emt 0:01:22]} Ne5 {[%emt 0:02:01]} 13.
g4 {[%emt 0:06:24]} Ng6 {[%emt 0:02:39]} 14. Bg3 {[%emt 0:00:35]} Nh7 {[%emt 0:
00:00]} 15. Kh2 {[%emt 0:12:07]} c6 {[%emt 0:06:59]} 16. Qd2 {[%emt 0:02:52]}
Qc7 {[%emt 0:00:13]} 17. Rad1 {[%emt 0:03:22]} Rad8 {[%emt 0:00:42]} 18. f4 {
[%emt 0:01:44]} f6 {[%emt 0:02:43]} 19. Qd3 {[%emt 0:11:17]} Nh8 {[%emt 0:00:
00]} 20. Qc4+ {[%emt 0:07:15]} Nf7 {[%emt 0:01:28]} 21. f5 {[%emt 0:04:17]} Qc8
{[%emt 0:10:36]} 22. Nce2 {[%emt 0:04:35]} Be7 {[%emt 0:04:02]} 23. Nf4 {
[%emt 0:02:02]} Nf8 {[%emt 0:00:25]} 24. Ng6 {[%emt 0:01:43]} c5 {[%emt 0:00:
00]} 25. Ne2 {[%emt 0:15:48]} a6 {[%emt 0:02:28]} 26. Nxe7+ {[%emt 0:00:55]}
Rxe7 {[%emt 0:00:44]} 27. Bxd6 {[%emt 0:00:09]} b5 {[%emt 0:02:43]} 28. Qa2 {
[%emt 0:03:28]} Be6 {[%emt 0:06:02]} 29. fxe6 {[%emt 0:00:29]} Nxd6 {[%emt 0:
00:00]} 30. axb5 {[%emt 0:00:28]} axb5 {[%emt 0:00:41]} 31. Nf4 {[%emt 0:00:53]
} Qb8 {[%emt 0:03:31]} 32. Kh1 {[%emt 0:01:37]} Ra7 {[%emt 0:03:41]} 33. Qd5 {
[%emt 0:02:12]} Nb7 {[%emt 0:01:42]} 34. Qf5 {[%emt 0:01:04]} Re8 {[%emt 0:00:
00]} 35. e5 {[%emt 0:01:04]} Na5 {[%emt 0:02:35]} 36. exf6 {[%emt 0:00:28]}
gxf6 {[%emt 0:01:01]} 37. Qxf6 {[%emt 0:00:37]} Nh7 {[%emt 0:02:08]} 38. Qxh6 {
[%emt 0:00:20]} Rae7 {[%emt 0:01:15]} 39. Nh5 {[%emt 0:01:05]} Qb6 {[%emt 0:00:
00]} 40. Be4 {[%emt 0:00:59]} Nc4 {[%emt 0:01:07]} 41. Bxh7+ {[%emt 0:30:09]}
Rxh7 {[%emt 0:30:48]} 42. Nf6+ {[%emt 0:00:05]} 1-0

[Event "44th Chess Olympiad Women 2022"]
[Site "Chennai"]
[Date "2022.07.29"]
[Round "1.9"]
[White "Banda Natalie Katlo"]
[Black "Mkrtchyan, Mariam"]
[Result "0-1"]
[WhiteElo "1688"]
[BlackElo "2285"]
[Annotator "NA RC"]
[PlyCount "60"]
[EventDate "2022.??.??"]
[TimeControl "60"]

1. d4 {[%emt 0:00:06]} d5 {[%emt 0:00:07]} 2. Nf3 {[%emt 0:00:06]} Nf6 {
[%emt 0:00:15]} 3. e3 {[%emt 0:00:10]} e6 {[%emt 0:02:52]} 4. Bd3 {[%emt 0:00:
00]} c5 {[%emt 0:00:12]} 5. c3 {[%emt 0:00:15]} b6 {[%emt 0:03:17]} 6. Nbd2 {
[%emt 0:01:00]} Bb7 {[%emt 0:00:51]} 7. Ne5 {[%emt 0:00:24]} Nbd7 {[%emt 0:00:
00]} 8. Ndf3 {[%emt 0:00:37]} Bd6 {[%emt 0:00:34]} 9. Bb5 {[%emt 0:00:58]} a6 {
[%emt 0:05:07]} 10. Bxd7+ {[%emt 0:00:52]} Nxd7 {[%emt 0:00:05]} 11. Nxd7 {
[%emt 0:00:33]} Qxd7 {[%emt 0:00:05]} 12. b3 {[%emt 0:00:25]} a5 {[%emt 0:00:
00]} 13. Ba3 {[%emt 0:04:06]} Ba6 {[%emt 0:03:40]} 14. dxc5 {[%emt 0:01:57]}
bxc5 {[%emt 0:04:43]} 15. Rc1 {[%emt 0:02:11]} c4 {[%emt 0:02:58]} 16. Bxd6 {
[%emt 0:01:44]} Qxd6 {[%emt 0:00:18]} 17. b4 {[%emt 0:04:03]} axb4 {[%emt 0:00:
00]} 18. Qa4+ {[%emt 0:00:34]} Ke7 {[%emt 0:00:06]} 19. Qxb4 {[%emt 0:01:00]}
Qxb4 {[%emt 0:01:29]} 20. cxb4 {[%emt 0:00:06]} Bb7 {[%emt 0:00:44]} 21. Rc2 {
[%emt 0:08:11]} Ra4 {[%emt 0:00:25]} 22. b5 {[%emt 0:03:56]} Rha8 {[%emt 0:00:
00]} 23. Kd2 {[%emt 0:01:55]} Rxa2 {[%emt 0:00:29]} 24. Rhc1 {[%emt 0:00:28]}
Kd6 {[%emt 0:01:06]} 25. Nd4 {[%emt 0:03:54]} Kc5 {[%emt 0:01:24]} 26. f4 {
[%emt 0:01:50]} Bc8 {[%emt 0:01:29]} 27. Rb1 {[%emt 0:01:23]} Kb6 {[%emt 0:00:
00]} 28. Rbb2 {[%emt 0:00:29]} Rxb2 {[%emt 0:01:32]} 29. Rxb2 {[%emt 0:00:11]}
Ra3 {[%emt 0:00:03]} 30. g3 {[%emt 0:01:33]} c3+ {[%emt 0:00:12]} 0-1

[Event "44th Chess Olympiad Women 2022"]
[Site "Chennai"]
[Date "2022.07.29"]
[Round "1.9"]
[White "Besa, Masaiti"]
[Black "Danielian, Elina"]
[Result "0-1"]
[WhiteElo "1745"]
[BlackElo "2441"]
[Annotator "ChessBase"]
[PlyCount "68"]
[EventDate "2022.??.??"]
[TimeControl "60"]

1. d4 {[%emt 0:00:07]} Nf6 {[%emt 0:00:34]} 2. Bf4 {[%emt 0:00:34]} g6 {
[%emt 0:01:50]} 3. Nf3 {[%emt 0:03:47]} Bg7 {[%emt 0:00:07]} 4. Nc3 {[%emt 0:
00:00]} d6 {[%emt 0:06:07]} 5. Qd2 {[%emt 0:00:58]} c6 {[%emt 0:02:10]} 6. e4 {
[%emt 0:09:55]} O-O {[%emt 0:07:53]} 7. O-O-O {[%emt 0:00:00]} Bg4 {[%emt 0:00:
00]} 8. Bh6 {[%emt 0:00:00]} b5 {[%emt 0:08:14]} 9. Bxg7 {[%emt 0:03:38]} Kxg7
{[%emt 0:00:04]} 10. h3 {[%emt 0:02:32]} Bxf3 {[%emt 0:00:35]} 11. gxf3 {
[%emt 0:00:09]} Nbd7 {[%emt 0:00:54]} 12. h4 {[%emt 0:00:50]} h5 {[%emt 0:00:
00]} 13. f4 {[%emt 0:06:05]} b4 {[%emt 0:02:11]} 14. e5 {[%emt 0:00:34]} bxc3 {
[%emt 0:00:54]} 15. exf6+ {[%emt 0:00:07]} Nxf6 {[%emt 0:01:45]} 16. Qxc3 {
[%emt 0:02:55]} e6 {[%emt 0:02:42]} 17. Bd3 {[%emt 0:02:01]} Rb8 {[%emt 0:00:
00]} 18. Qxc6 {[%emt 0:09:28]} Nd5 {[%emt 0:08:00]} 19. a3 {[%emt 0:05:14]} Rb6
{[%emt 0:04:05]} 20. Qa4 {[%emt 0:04:30]} Qb8 {[%emt 0:00:50]} 21. f5 {[%emt 0:
00:00]} Rxb2 {[%emt 0:07:33]} 22. Rdg1 {[%emt 0:04:08]} exf5 {[%emt 0:07:10]}
23. Bxf5 {[%emt 0:04:30]} Qb6 {[%emt 0:04:25]} 24. Kd2 {[%emt 0:10:26]} Qc7 {
[%emt 0:02:48]} 25. Rg3 {[%emt 0:01:27]} Nb6 {[%emt 0:01:16]} 26. Qa6 {[%emt 0:
00:00]} Nc4+ {[%emt 0:06:19]} 27. Kd3 {[%emt 0:04:54]} Nxa3 {[%emt 0:02:20]}
28. Ke2 {[%emt 0:06:35]} Nxc2 {[%emt 0:00:27]} 29. Kf1 {[%emt 0:01:19]} Re8 {
[%emt 0:00:48]} 30. Qd3 {[%emt 0:02:28]} Ne1 {[%emt 0:00:24]} 31. Qd1 {[%emt 0:
00:00]} d5 {[%emt 0:00:42]} 32. Rhg1 {[%emt 0:04:11]} Qf4 {[%emt 0:00:25]} 33.
Rxg6+ {[%emt 0:00:33]} fxg6 {[%emt 0:00:04]} 34. Rxg6+ {[%emt 0:00:09]} Kf7 {
[%emt 0:00:27]} 0-1